[Event "January 2 Late 2024"]
[Site "https://www.chess.com"]
[Date "2024.01.02"]
[Round "4"]
[White "Luo, Terry"]
[Black "Gallegos Diaz, Carlos Alberto"]
[Result "1-0"]
[Board "122"]
[TimeControl "180+1"]
[WhiteFideId "30931045"]
[BlackFideId "3900886"]
[WhiteElo "2605"]
[BlackElo "2403"]
[WhiteTeam "USA"]
[BlackTeam "VEN"]
[WhiteClock "0:01:10"]
[BlackClock "0:00:07"]

1. d4 {[%clk 0:03:00]}  d6 {[%clk 0:03:00]} 2. Nf3 {[%clk 0:03:00]}  Nf6 {[%clk 0:03:00]} 3. c4 {[%clk 0:03:00]}  Nbd7 {[%clk 0:03:00]} 4. Nc3 {[%clk 0:03:01]}  e5 {[%clk 0:02:59]} 5. e4 {[%clk 0:03:01]}  Be7 {[%clk 0:02:59]} 6. Be2 {[%clk 0:03:02]}  O-O {[%clk 0:02:59]} 7. O-O {[%clk 0:03:03]}  exd4 {[%clk 0:03:00]} 8. Nxd4 {[%clk 0:03:03]}  Re8 {[%clk 0:03:00]} 9. f3 {[%clk 0:03:03]}  Bf8 {[%clk 0:03:00]} 10. Be3 {[%clk 0:03:01]}  c6 {[%clk 0:03:00]} 11. Bf2 {[%clk 0:03:01]}  d5 {[%clk 0:02:57]} 12. cxd5 {[%clk 0:03:01]}  cxd5 {[%clk 0:02:57]} 13. exd5 {[%clk 0:03:02]}  Nb6 {[%clk 0:02:57]} 14. Bb5 {[%clk 0:03:02]}  Bd7 {[%clk 0:02:56]} 15. a4 {[%clk 0:02:56]}  Nbxd5 {[%clk 0:02:47]} 16. Nxd5 {[%clk 0:02:55]}  Nxd5 {[%clk 0:02:47]} 17. Qb3 {[%clk 0:02:52]}  Nb4 {[%clk 0:02:22]} 18. Rad1 {[%clk 0:02:48]}  Bxb5 {[%clk 0:02:17]} 19. Nxb5 {[%clk 0:02:42]}  Qa5 {[%clk 0:02:08]} 20. Rd7 {[%clk 0:02:39]}  Re7 {[%clk 0:02:01]} 21. Rfd1 {[%clk 0:02:39]}  Nc6 {[%clk 0:01:52]} 22. Rxe7 {[%clk 0:02:31]}  Bxe7 {[%clk 0:01:47]} 23. Rd7 {[%clk 0:02:00]}  a6 {[%clk 0:01:24]} 24. Nd6 {[%clk 0:01:59]}  Qh5 {[%clk 0:00:24]} 25. Qxb7 {[%clk 0:01:50]}  Rd8 {[%clk 0:00:18]} 26. Qxc6 {[%clk 0:01:47]}  Rxd7 {[%clk 0:00:08]} 27. Qxd7 {[%clk 0:01:44]}  Bf8 {[%clk 0:00:08]} 28. b4 {[%clk 0:01:20]}  Qd5 {[%clk 0:00:07]} 29. Qxf7+ {[%clk 0:01:20]}  Qxf7 {[%clk 0:00:07]} 30. Nxf7 {[%clk 0:01:21]}  Kxf7 {[%clk 0:00:07]} 31. b5 {[%clk 0:01:21]}  axb5 {[%clk 0:00:07]} 32. axb5 {[%clk 0:01:17]}  Ke6 {[%clk 0:00:08]} 33. Kf1 {[%clk 0:01:10]}  Kf7 {[%clk 0:00:09]} 34. b6 {[%clk 0:01:09]}  Ke6 {[%clk 0:00:10]} 35. b7 {[%clk 0:01:09]}  Kd5 {[%clk 0:00:11]} 36. b8=Q {[%clk 0:01:09]}  Kc6 {[%clk 0:00:11]} 37. Qxf8 {[%clk 0:01:09]}  Kb7 {[%clk 0:00:07]} 38. Qxg7+ {[%clk 0:01:10]} 1-0

[Event "January 2 Late 2024"]
[Site "https://www.chess.com"]
[Date "2024.01.02"]
[Round "4"]
[White "Rodriguez Avila, Alvaro"]
[Black "Tao, Sihan"]
[Result "0-1"]
[Board "128"]
[TimeControl "180+1"]
[WhiteFideId "24570249"]
[BlackFideId "30982677"]
[WhiteElo "2304"]
[BlackElo "2506"]
[WhiteTeam "ESP"]
[BlackTeam "USA"]
[WhiteClock "0:00:00"]
[BlackClock "0:00:21"]

1. e4 {[%clk 0:03:00]}  c5 {[%clk 0:02:58]} 2. d4 {[%clk 0:02:59]}  cxd4 {[%clk 0:02:58]} 3. c3 {[%clk 0:03:00]}  Nf6 {[%clk 0:02:59]} 4. e5 {[%clk 0:03:00]}  Nd5 {[%clk 0:02:59]} 5. Nf3 {[%clk 0:03:00]}  d6 {[%clk 0:02:59]} 6. cxd4 {[%clk 0:03:01]}  Nc6 {[%clk 0:02:59]} 7. Bc4 {[%clk 0:03:01]}  dxe5 {[%clk 0:03:00]} 8. dxe5 {[%clk 0:03:01]}  Be6 {[%clk 0:03:00]} 9. a3 {[%clk 0:02:54]}  g6 {[%clk 0:02:58]} 10. O-O {[%clk 0:02:52]}  Bg7 {[%clk 0:02:57]} 11. Re1 {[%clk 0:02:52]}  O-O {[%clk 0:02:57]} 12. h3 {[%clk 0:02:51]}  Qd7 {[%clk 0:02:26]} 13. Nbd2 {[%clk 0:02:47]}  Nb6 {[%clk 0:02:21]} 14. Bb5 {[%clk 0:02:33]}  a6 {[%clk 0:02:15]} 15. Bxc6 {[%clk 0:02:22]}  Qxc6 {[%clk 0:02:16]} 16. Nd4 {[%clk 0:02:21]}  Qd5 {[%clk 0:02:11]} 17. N2f3 {[%clk 0:01:43]}  Rfd8 {[%clk 0:02:04]} 18. Bg5 {[%clk 0:01:39]}  Rd7 {[%clk 0:01:54]} 19. Qe2 {[%clk 0:01:39]}  Nc4 {[%clk 0:01:52]} 20. Rad1 {[%clk 0:01:39]}  Rad8 {[%clk 0:01:40]} 21. Bxe7 {[%clk 0:00:31]}  Rxe7 {[%clk 0:01:06]} 22. Nf5 {[%clk 0:00:32]}  gxf5 {[%clk 0:00:52]} 23. Rxd5 {[%clk 0:00:31]}  Bxd5 {[%clk 0:00:51]} 24. Rd1 {[%clk 0:00:29]}  Nxe5 {[%clk 0:00:45]} 25. Nxe5 {[%clk 0:00:23]}  Rxe5 {[%clk 0:00:46]} 26. Qd2 {[%clk 0:00:14]}  Rde8 {[%clk 0:00:43]} 27. Qd3 {[%clk 0:00:12]}  Bc6 {[%clk 0:00:41]} 28. Rf1 {[%clk 0:00:09]}  Re1 {[%clk 0:00:40]} 29. Qxf5 {[%clk 0:00:07]}  Bb5 {[%clk 0:00:20]} 30. Rxe1 {[%clk 0:00:06]}  Rxe1+ {[%clk 0:00:21]} 31. Kh2 {[%clk 0:00:07]}  Bc6 {[%clk 0:00:21]} 32. Qc8+ {[%clk 0:00:05]}  Re8 {[%clk 0:00:20]} 33. Qf5 {[%clk 0:00:05]}  Bxb2 {[%clk 0:00:20]} 34. Qg5+ {[%clk 0:00:04]}  Bg7 {[%clk 0:00:21]} 35. h4 {[%clk 0:00:03]}  Re5 {[%clk 0:00:21]} 36. Qd8+ {[%clk 0:00:03]}  Bf8 {[%clk 0:00:22]} 37. f3 {[%clk 0:00:02]}  Rh5 {[%clk 0:00:21]} 38. Kg3 {[%clk 0:00:02]}  Kg7 {[%clk 0:00:21]} 39. Qb6 {[%clk 0:00:02]}  Be7 {[%clk 0:00:21]} 40. Qb2+ {[%clk 0:00:01]}  Bf6 {[%clk 0:00:21]} 41. Qb5 {[%clk 0:00:00]}  axb5 {[%clk 0:00:21]} 0-1

[Event "January 2 Late 2024"]
[Site "https://www.chess.com"]
[Date "2024.01.02"]
[Round "4"]
[White "Tagliati, Eleonore"]
[Black "Stojanovski, Sandi"]
[Result "1/2-1/2"]
[Board "129"]
[TimeControl "180+1"]
[WhiteFideId "45172234"]
[BlackFideId "1403249"]
[WhiteElo "2202"]
[BlackElo "2505"]
[WhiteTeam "FRA"]
[BlackTeam "DEN"]
[WhiteClock "0:00:12"]
[BlackClock "0:00:02"]

1. e4 {[%clk 0:03:00]}  d6 {[%clk 0:02:59]} 2. d4 {[%clk 0:03:00]}  Nf6 {[%clk 0:02:59]} 3. Nc3 {[%clk 0:03:00]}  g6 {[%clk 0:02:59]} 4. Nf3 {[%clk 0:03:00]}  Bg7 {[%clk 0:02:59]} 5. Be2 {[%clk 0:03:01]}  O-O {[%clk 0:02:59]} 6. O-O {[%clk 0:03:01]}  Bg4 {[%clk 0:02:59]} 7. h3 {[%clk 0:02:59]}  Bxf3 {[%clk 0:02:58]} 8. Bxf3 {[%clk 0:03:00]}  Nc6 {[%clk 0:02:52]} 9. Be3 {[%clk 0:02:51]}  e5 {[%clk 0:02:51]} 10. dxe5 {[%clk 0:02:46]}  dxe5 {[%clk 0:02:51]} 11. Nd5 {[%clk 0:02:38]}  Nd4 {[%clk 0:02:29]} 12. Bxd4 {[%clk 0:02:36]}  exd4 {[%clk 0:02:20]} 13. Qxd4 {[%clk 0:02:27]}  Nxd5 {[%clk 0:02:18]} 14. Qxd5 {[%clk 0:02:28]}  Qxd5 {[%clk 0:02:05]} 15. exd5 {[%clk 0:02:29]}  Bxb2 {[%clk 0:02:05]} 16. Rab1 {[%clk 0:02:29]}  Bd4 {[%clk 0:02:04]} 17. Rxb7 {[%clk 0:02:25]}  Bb6 {[%clk 0:02:02]} 18. c4 {[%clk 0:02:22]}  Rab8 {[%clk 0:01:23]} 19. Rxb8 {[%clk 0:02:20]}  Rxb8 {[%clk 0:01:24]} 20. Rc1 {[%clk 0:02:17]}  Bc5 {[%clk 0:01:23]} 21. Rc2 {[%clk 0:02:15]}  a5 {[%clk 0:01:20]} 22. g3 {[%clk 0:02:10]}  a4 {[%clk 0:01:19]} 23. Kg2 {[%clk 0:02:10]}  a3 {[%clk 0:01:19]} 24. Be4 {[%clk 0:02:10]}  f5 {[%clk 0:01:14]} 25. Bd3 {[%clk 0:02:10]}  Kf7 {[%clk 0:01:11]} 26. Re2 {[%clk 0:02:05]}  Rb2 {[%clk 0:01:07]} 27. Kf3 {[%clk 0:02:00]}  h5 {[%clk 0:00:59]} 28. Rc2 {[%clk 0:01:34]}  Rb6 {[%clk 0:00:53]} 29. Re2 {[%clk 0:01:32]}  Kf6 {[%clk 0:00:52]} 30. g4 {[%clk 0:01:29]}  fxg4+ {[%clk 0:00:50]} 31. hxg4 {[%clk 0:01:30]}  h4 {[%clk 0:00:50]} 32. Kg2 {[%clk 0:01:19]}  g5 {[%clk 0:00:45]} 33. Kh3 {[%clk 0:01:02]}  Rb2 {[%clk 0:00:44]} 34. Re6+ {[%clk 0:00:54]}  Kf7 {[%clk 0:00:39]} 35. Re2 {[%clk 0:00:54]}  Rxe2 {[%clk 0:00:33]} 36. Bxe2 {[%clk 0:00:53]}  Bxf2 {[%clk 0:00:32]} 37. Kg2 {[%clk 0:00:53]}  Bc5 {[%clk 0:00:31]} 38. Kf3 {[%clk 0:00:50]}  Kf6 {[%clk 0:00:30]} 39. Ke4 {[%clk 0:00:43]}  h3 {[%clk 0:00:28]} 40. Bf3 {[%clk 0:00:43]}  h2 {[%clk 0:00:21]} 41. Bg2 {[%clk 0:00:41]}  Bf2 {[%clk 0:00:18]} 42. Bf3 {[%clk 0:00:40]}  Ke7 {[%clk 0:00:18]} 43. Kf5 {[%clk 0:00:37]}  Be3 {[%clk 0:00:17]} 44. Ke4 {[%clk 0:00:36]}  Bg1 {[%clk 0:00:10]} 45. Kf5 {[%clk 0:00:33]}  Kd6 {[%clk 0:00:09]} 46. Kxg5 {[%clk 0:00:32]}  Ke5 {[%clk 0:00:09]} 47. Bh1 {[%clk 0:00:28]}  Kd4 {[%clk 0:00:07]} 48. Kf6 {[%clk 0:00:26]}  Kxc4 {[%clk 0:00:07]} 49. g5 {[%clk 0:00:27]}  Kc3 {[%clk 0:00:06]} 50. g6 {[%clk 0:00:24]}  Kb2 {[%clk 0:00:05]} 51. Ke5 {[%clk 0:00:19]}  Kc3 {[%clk 0:00:04]} 52. d6 {[%clk 0:00:13]}  Bd4+ {[%clk 0:00:03]} 53. Kd5 {[%clk 0:00:13]}  cxd6 {[%clk 0:00:03]} 54. Kxd6 {[%clk 0:00:14]}  Kb2 {[%clk 0:00:03]} 55. Bd5 {[%clk 0:00:13]}  Bg7 {[%clk 0:00:02]} 56. Ke7 {[%clk 0:00:13]}  h1=Q {[%clk 0:00:02]} 57. Bxh1 {[%clk 0:00:12]}  Kxa2 {[%clk 0:00:03]} 58. Bd5+ {[%clk 0:00:12]}  Kb2 {[%clk 0:00:01]} 59. Kf7 {[%clk 0:00:11]}  Bc3 {[%clk 0:00:02]} 60. Be6 {[%clk 0:00:11]}  a2 {[%clk 0:00:02]} 61. Bxa2 {[%clk 0:00:11]}  Kxa2 {[%clk 0:00:02]} 62. g7 {[%clk 0:00:12]}  Bxg7 {[%clk 0:00:02]} 1/2-1/2

[Event "January 2 Late 2024"]
[Site "https://www.chess.com"]
[Date "2024.01.02"]
[Round "4"]
[White "Blanco Ronquillo, Humberto L."]
[Black "Rees, Ioan"]
[Result "1-0"]
[Board "133"]
[TimeControl "180+1"]
[WhiteFideId "3504239"]
[BlackFideId "1801236"]
[WhiteElo "2701"]
[BlackElo "2415"]
[WhiteTeam "CUB"]
[BlackTeam "WLS"]
[WhiteClock "0:00:16"]
[BlackClock "0:00:06"]

1. e4 {[%clk 0:02:53]}  e5 {[%clk 0:03:00]} 2. Nf3 {[%clk 0:02:53]}  Nc6 {[%clk 0:03:00]} 3. d4 {[%clk 0:02:54]}  exd4 {[%clk 0:03:00]} 4. Nxd4 {[%clk 0:02:55]}  Nf6 {[%clk 0:02:59]} 5. Nxc6 {[%clk 0:02:55]}  bxc6 {[%clk 0:02:58]} 6. e5 {[%clk 0:02:56]}  Qe7 {[%clk 0:02:58]} 7. Qe2 {[%clk 0:02:56]}  Nd5 {[%clk 0:02:58]} 8. c4 {[%clk 0:02:56]}  Nb6 {[%clk 0:02:56]} 9. Nc3 {[%clk 0:02:54]}  Ba6 {[%clk 0:02:50]} 10. Qe4 {[%clk 0:02:53]}  f6 {[%clk 0:02:46]} 11. exf6 {[%clk 0:02:50]}  Qxe4+ {[%clk 0:02:42]} 12. Nxe4 {[%clk 0:02:50]}  gxf6 {[%clk 0:02:35]} 13. b3 {[%clk 0:01:49]}  Bb4+ {[%clk 0:02:28]} 14. Bd2 {[%clk 0:01:49]}  Bxd2+ {[%clk 0:02:23]} 15. Kxd2 {[%clk 0:01:50]}  Kf7 {[%clk 0:02:09]} 16. Be2 {[%clk 0:01:38]}  d5 {[%clk 0:02:02]} 17. Bh5+ {[%clk 0:01:15]}  Kg7 {[%clk 0:01:55]} 18. Ng3 {[%clk 0:01:16]}  Rhd8 {[%clk 0:01:51]} 19. c5 {[%clk 0:01:12]}  Nd7 {[%clk 0:01:49]} 20. b4 {[%clk 0:01:11]}  Rab8 {[%clk 0:01:47]} 21. a3 {[%clk 0:01:10]}  Ne5 {[%clk 0:01:48]} 22. Nf5+ {[%clk 0:01:09]}  Kf8 {[%clk 0:01:47]} 23. Nd4 {[%clk 0:01:10]}  Bc8 {[%clk 0:01:35]} 24. f4 {[%clk 0:01:08]}  Nc4+ {[%clk 0:01:35]} 25. Kc3 {[%clk 0:01:09]}  Bd7 {[%clk 0:01:31]} 26. Rhe1 {[%clk 0:01:07]}  a5 {[%clk 0:01:28]} 27. Be2 {[%clk 0:01:06]}  axb4+ {[%clk 0:01:24]} 28. axb4 {[%clk 0:01:07]}  Ne3 {[%clk 0:01:20]} 29. g3 {[%clk 0:01:01]}  Ra8 {[%clk 0:01:10]} 30. Bd3 {[%clk 0:00:59]}  Ng4 {[%clk 0:00:52]} 31. Bxh7 {[%clk 0:00:54]}  Nxh2 {[%clk 0:00:50]} 32. Bd3 {[%clk 0:00:38]}  Ng4 {[%clk 0:00:43]} 33. Bf5 {[%clk 0:00:33]}  Bxf5 {[%clk 0:00:40]} 34. Nxf5 {[%clk 0:00:34]}  Re8 {[%clk 0:00:36]} 35. Rh1 {[%clk 0:00:26]}  Rxa1 {[%clk 0:00:29]} 36. Rxa1 {[%clk 0:00:27]}  Ne3 {[%clk 0:00:29]} 37. Nd4 {[%clk 0:00:25]}  Nc4 {[%clk 0:00:23]} 38. Nxc6 {[%clk 0:00:18]}  Re3+ {[%clk 0:00:22]} 39. Kd4 {[%clk 0:00:18]}  Rxg3 {[%clk 0:00:18]} 40. Kxd5 {[%clk 0:00:19]}  Ne3+ {[%clk 0:00:17]} 41. Ke6 {[%clk 0:00:19]}  Ng2 {[%clk 0:00:14]} 42. Kxf6 {[%clk 0:00:18]}  Ke8 {[%clk 0:00:13]} 43. Ne5 {[%clk 0:00:17]}  Nxf4 {[%clk 0:00:06]} 44. Ra8# {[%clk 0:00:16]} 1-0

[Event "January 2 Late 2024"]
[Site "https://www.chess.com"]
[Date "2024.01.02"]
[Round "4"]
[White "Rego, Pedro Filipe"]
[Black "Perske, Thore"]
[Result "0-1"]
[Board "138"]
[TimeControl "180+1"]
[WhiteFideId "1904310"]
[BlackFideId "12902195"]
[WhiteElo "2400"]
[BlackElo "2651"]
[WhiteTeam "POR"]
[BlackTeam "GER"]
[WhiteClock "0:00:34"]
[BlackClock "0:00:51"]

1. e4 {[%clk 0:03:00]}  e6 {[%clk 0:02:56]} 2. d4 {[%clk 0:03:00]}  d5 {[%clk 0:02:56]} 3. Nd2 {[%clk 0:02:56]}  c5 {[%clk 0:02:55]} 4. exd5 {[%clk 0:02:55]}  Qxd5 {[%clk 0:02:56]} 5. Ngf3 {[%clk 0:02:55]}  cxd4 {[%clk 0:02:56]} 6. Bc4 {[%clk 0:02:55]}  Qd6 {[%clk 0:02:57]} 7. O-O {[%clk 0:02:55]}  Nf6 {[%clk 0:02:57]} 8. Nb3 {[%clk 0:02:55]}  Nc6 {[%clk 0:02:57]} 9. Nfxd4 {[%clk 0:02:52]}  Nxd4 {[%clk 0:02:58]} 10. Nxd4 {[%clk 0:02:50]}  Be7 {[%clk 0:02:57]} 11. Nb5 {[%clk 0:02:43]}  Qc6 {[%clk 0:02:57]} 12. Qe2 {[%clk 0:02:39]}  O-O {[%clk 0:02:51]} 13. Bf4 {[%clk 0:02:35]}  b6 {[%clk 0:02:40]} 14. Nd4 {[%clk 0:02:30]}  Qc5 {[%clk 0:02:23]} 15. Nb3 {[%clk 0:02:19]}  Qf5 {[%clk 0:01:59]} 16. Bg3 {[%clk 0:02:04]}  Bb7 {[%clk 0:01:53]} 17. Rad1 {[%clk 0:01:56]}  Rfd8 {[%clk 0:01:48]} 18. Bd3 {[%clk 0:01:54]}  Qh5 {[%clk 0:01:38]} 19. Qxh5 {[%clk 0:01:32]}  Nxh5 {[%clk 0:01:39]} 20. Bc7 {[%clk 0:01:32]}  Rdc8 {[%clk 0:01:35]} 21. Be5 {[%clk 0:01:28]}  Bf6 {[%clk 0:01:30]} 22. Bxf6 {[%clk 0:01:27]}  Nxf6 {[%clk 0:01:30]} 23. c3 {[%clk 0:01:23]}  Bd5 {[%clk 0:01:25]} 24. Ba6 {[%clk 0:01:17]}  Rd8 {[%clk 0:01:22]} 25. Rd4 {[%clk 0:01:16]}  Bxb3 {[%clk 0:01:17]} 26. Rxd8+ {[%clk 0:01:08]}  Rxd8 {[%clk 0:01:18]} 27. axb3 {[%clk 0:01:08]}  Rd2 {[%clk 0:01:16]} 28. Rb1 {[%clk 0:01:08]}  Ne4 {[%clk 0:01:13]} 29. f3 {[%clk 0:01:02]}  Nc5 {[%clk 0:01:12]} 30. Bc4 {[%clk 0:01:01]}  g6 {[%clk 0:01:09]} 31. b4 {[%clk 0:01:01]}  Na4 {[%clk 0:01:08]} 32. Bb3 {[%clk 0:00:56]}  Nxb2 {[%clk 0:01:07]} 33. Ra1 {[%clk 0:00:51]}  Nd3 {[%clk 0:00:58]} 34. Rxa7 {[%clk 0:00:50]}  Rb2 {[%clk 0:00:58]} 35. Kf1 {[%clk 0:00:42]}  Rxb3 {[%clk 0:00:55]} 36. Ke2 {[%clk 0:00:39]}  Nf4+ {[%clk 0:00:54]} 37. Ke3 {[%clk 0:00:35]}  Nd5+ {[%clk 0:00:51]} 38. Kd4 {[%clk 0:00:34]} 0-1

[Event "January 2 Late 2024"]
[Site "https://www.chess.com"]
[Date "2024.01.02"]
[Round "4"]
[White "Agibileg, Uurtsaikh"]
[Black "Bristy Mukherjee"]
[Result "1-0"]
[Board "139"]
[TimeControl "180+1"]
[WhiteFideId "4901606"]
[BlackFideId "25077325"]
[WhiteElo "2645"]
[BlackElo "2401"]
[WhiteTeam "MGL"]
[BlackTeam "IND"]
[WhiteClock "0:01:14"]
[BlackClock "0:00:42"]

1. d4 {[%clk 0:03:00]}  f5 {[%clk 0:02:59]} 2. g3 {[%clk 0:02:59]}  Nf6 {[%clk 0:03:00]} 3. Bg2 {[%clk 0:03:00]}  e6 {[%clk 0:03:01]} 4. Nf3 {[%clk 0:03:00]}  d6 {[%clk 0:03:02]} 5. O-O {[%clk 0:03:01]}  Be7 {[%clk 0:03:03]} 6. c4 {[%clk 0:03:01]}  O-O {[%clk 0:03:04]} 7. b3 {[%clk 0:03:01]}  Nc6 {[%clk 0:03:04]} 8. Bb2 {[%clk 0:03:02]}  a5 {[%clk 0:03:04]} 9. Nc3 {[%clk 0:03:02]}  e5 {[%clk 0:03:02]} 10. dxe5 {[%clk 0:03:02]}  dxe5 {[%clk 0:03:02]} 11. e4 {[%clk 0:03:02]}  f4 {[%clk 0:03:01]} 12. Nd5 {[%clk 0:02:44]}  Bg4 {[%clk 0:02:58]} 13. h3 {[%clk 0:02:44]}  Bxf3 {[%clk 0:02:52]} 14. Bxf3 {[%clk 0:02:44]}  Bd6 {[%clk 0:02:48]} 15. gxf4 {[%clk 0:02:36]}  exf4 {[%clk 0:02:44]} 16. Nxf6+ {[%clk 0:02:35]}  gxf6 {[%clk 0:02:39]} 17. Kh2 {[%clk 0:02:27]}  Be5 {[%clk 0:02:39]} 18. Rg1+ {[%clk 0:02:23]}  Kh8 {[%clk 0:02:39]} 19. Qe2 {[%clk 0:02:13]}  Bxb2 {[%clk 0:02:33]} 20. Qxb2 {[%clk 0:02:14]}  Qd4 {[%clk 0:02:34]} 21. Qe2 {[%clk 0:02:10]}  Rad8 {[%clk 0:02:31]} 22. Rad1 {[%clk 0:02:08]}  Qe5 {[%clk 0:02:31]} 23. Rd5 {[%clk 0:02:07]}  Rxd5 {[%clk 0:02:28]} 24. exd5 {[%clk 0:02:07]}  Qxe2 {[%clk 0:02:25]} 25. Bxe2 {[%clk 0:02:08]}  Nd4 {[%clk 0:02:24]} 26. Bh5 {[%clk 0:02:08]}  h6 {[%clk 0:02:10]} 27. Re1 {[%clk 0:02:08]}  Rg8 {[%clk 0:02:03]} 28. Re4 {[%clk 0:02:08]}  c5 {[%clk 0:01:54]} 29. dxc6 {[%clk 0:02:00]}  Nxc6 {[%clk 0:01:52]} 30. Rxf4 {[%clk 0:02:01]}  Rg5 {[%clk 0:01:52]} 31. Bf3 {[%clk 0:02:01]}  Ne5 {[%clk 0:01:45]} 32. Bxb7 {[%clk 0:01:58]}  Kg7 {[%clk 0:01:45]} 33. Rd4 {[%clk 0:01:53]}  Rf5 {[%clk 0:01:41]} 34. f4 {[%clk 0:01:49]}  Ng6 {[%clk 0:01:30]} 35. Kg3 {[%clk 0:01:49]}  Rc5 {[%clk 0:01:25]} 36. Rd7+ {[%clk 0:01:46]}  Kf8 {[%clk 0:01:24]} 37. a3 {[%clk 0:01:44]}  Ne7 {[%clk 0:01:23]} 38. Be4 {[%clk 0:01:40]}  a4 {[%clk 0:01:24]} 39. Bc2 {[%clk 0:01:35]}  axb3 {[%clk 0:01:20]} 40. Bxb3 {[%clk 0:01:36]}  Nf5+ {[%clk 0:01:14]} 41. Kf3 {[%clk 0:01:34]}  Ra5 {[%clk 0:01:12]} 42. a4 {[%clk 0:01:33]}  Ke8 {[%clk 0:01:12]} 43. Rd1 {[%clk 0:01:31]}  Nh4+ {[%clk 0:01:11]} 44. Ke4 {[%clk 0:01:29]}  Ke7 {[%clk 0:01:10]} 45. Rd5 {[%clk 0:01:26]}  Ra8 {[%clk 0:01:01]} 46. a5 {[%clk 0:01:27]}  f5+ {[%clk 0:00:54]} 47. Ke5 {[%clk 0:01:20]}  Ra6 {[%clk 0:00:54]} 48. Ba4 {[%clk 0:01:16]}  Re6+ {[%clk 0:00:53]} 49. Kd4 {[%clk 0:01:16]}  Nf3+ {[%clk 0:00:53]} 50. Kc5 {[%clk 0:01:15]}  Nd2 {[%clk 0:00:42]} 51. Rxd2 {[%clk 0:01:14]} 1-0

[Event "January 2 Late 2024"]
[Site "https://www.chess.com"]
[Date "2024.01.02"]
[Round "4"]
[White "Travkina, Anastasia"]
[Black "Niedbala, Bartlomiej"]
[Result "0-1"]
[Board "141"]
[TimeControl "180+1"]
[WhiteFideId "24129151"]
[BlackFideId "21834008"]
[WhiteElo "2395"]
[BlackElo "2641"]
[WhiteTeam "RUS"]
[BlackTeam "POL"]
[WhiteClock "0:00:17"]
[BlackClock "0:01:09"]

1. e4 {[%clk 0:02:58]}  g6 {[%clk 0:03:00]} 2. d4 {[%clk 0:02:57]}  Bg7 {[%clk 0:03:01]} 3. Nc3 {[%clk 0:02:58]}  b6 {[%clk 0:03:02]} 4. f4 {[%clk 0:02:57]}  Bb7 {[%clk 0:03:03]} 5. d5 {[%clk 0:02:47]}  e6 {[%clk 0:03:03]} 6. Nf3 {[%clk 0:02:44]}  Ne7 {[%clk 0:03:02]} 7. Bc4 {[%clk 0:02:38]}  O-O {[%clk 0:03:02]} 8. O-O {[%clk 0:02:38]}  Na6 {[%clk 0:02:45]} 9. Be3 {[%clk 0:02:27]}  Nc5 {[%clk 0:02:44]} 10. e5 {[%clk 0:02:18]}  exd5 {[%clk 0:02:25]} 11. Nxd5 {[%clk 0:02:16]}  Nf5 {[%clk 0:02:25]} 12. Bxc5 {[%clk 0:02:10]}  bxc5 {[%clk 0:02:26]} 13. g4 {[%clk 0:02:04]}  Ne7 {[%clk 0:02:24]} 14. Nf6+ {[%clk 0:02:03]}  Bxf6 {[%clk 0:02:24]} 15. exf6 {[%clk 0:02:04]}  Nc6 {[%clk 0:02:24]} 16. g5 {[%clk 0:02:02]}  Re8 {[%clk 0:02:11]} 17. c3 {[%clk 0:01:58]}  Na5 {[%clk 0:02:08]} 18. Bd5 {[%clk 0:01:40]}  c6 {[%clk 0:02:03]} 19. Bb3 {[%clk 0:01:40]}  c4 {[%clk 0:02:01]} 20. Bc2 {[%clk 0:01:38]}  Qb6+ {[%clk 0:01:52]} 21. Nd4 {[%clk 0:01:32]}  Qxb2 {[%clk 0:01:45]} 22. Qd2 {[%clk 0:01:30]}  Qb6 {[%clk 0:01:38]} 23. Qf2 {[%clk 0:01:28]}  c5 {[%clk 0:01:26]} 24. Qh4 {[%clk 0:01:24]}  h5 {[%clk 0:01:25]} 25. Nf5 {[%clk 0:01:20]}  Qc6 {[%clk 0:01:11]} 26. Nh6+ {[%clk 0:01:19]}  Kf8 {[%clk 0:01:11]} 27. Qg3 {[%clk 0:00:21]}  Re2 {[%clk 0:01:09]} 28. Rf3 {[%clk 0:00:19]}  Qxf3 {[%clk 0:01:09]} 29. Qxf3 {[%clk 0:00:20]}  Bxf3 {[%clk 0:01:10]} 30. Bd1 {[%clk 0:00:17]}  Re1+ {[%clk 0:01:09]} 0-1